lending/lending_fUSD_20240603
["ID","MTS","AMOUNT","RATE_DAILY","PERIOD"]
[328457714,1717415433841,-268.9070604,0.00031498,4]
[328457715,1717415433860,-1179.91576345,0.00031498,4]
[328457716,1717415433869,-162.56772241,0.00031498,4]
[328457717,1717415433879,-251.01248723,0.00031498,4]
[328457718,1717415433888,-271.3145742,0.00031498,4]
[328457719,1717415433898,-959.08973281,0.00031498,4]
[328457720,1717415433907,-237.3275213,0.00031498,4]
[328457721,1717415433917,-169.24154584,0.00031498,4]
[328457722,1717415433927,-826.85519878,0.00031498,4]
[328457735,1717415437993,-3148.04480263,0.00031498,4]
[328457747,1717415440465,-150.01,0.00031497,2]
[328457748,1717415440474,-392.75931822,0.00031497,2]
[328457749,1717415440487,-664.35000011,0.00031497,2]
[328457750,1717415440499,-1861.92107015,0.00031497,2]
[328457751,1717415440509,-3572.00186705,0.00031498,4]
[328457752,1717415440520,-326.7992894,0.00031498,4]
[328457753,1717415440530,-1068.6736905,0.00031498,4]
[328457754,1717415440539,-338.05266034,0.00031498,4]
[328457755,1717415440550,-156.160569,0.00031498,4]
[328457756,1717415440560,-425.55912774,0.00031498,2]
[328457757,1717415440570,-15016.55461737,0.00031498,5]
[328457758,1717415440582,-867.96587217,0.00031498,5]
[328457759,1717415440595,-745.83403878,0.00031498,5]
[328457760,1717415440641,-6842.74502857,0.00031498,5]
[328457761,1717415440651,-2609.61923201,0.00031498,4]
[328457762,1717415440661,-15076.38348606,0.00031498,2]
[328457763,1717415440671,-206.70702658,0.00031498,4]
[328457764,1717415440681,-449.60600703,0.00031498,4]
[328457765,1717415440690,-321.75766818,0.00031498,4]
[328457766,1717415440700,-155.35143462,0.00031498,4]
[328457767,1717415440709,-326.93941435,0.00031498,4]
[328457768,1717415440718,-781.55564957,0.00031498,4]
[328457769,1717415440727,-793.67449556,0.00031498,4]
[328457770,1717415440738,-297.04712645,0.00031498,4]
[328457771,1717415440748,-524.31938049,0.00031498,4]
[328457772,1717415440757,-269.42992695,0.00031498,4]
[328457773,1717415440767,-208.21284041,0.00031498,4]
[328457774,1717415440776,-628.16473971,0.00031498,4]
[328457775,1717415440785,-285.21638539,0.00031498,4]
[328457776,1717415440795,-253.07943,0.00031498,4]
[328457777,1717415440804,-300.0,0.00031499,10]
[328457778,1717415440813,-300.0,0.00031499,10]
[328457779,1717415440823,-301.67861621,0.00031499,2]
[328457780,1717415440832,-9791.49922031,0.00031499,4]
[328457781,1717415440841,-35572.17378315,0.000315,13]
[328457805,1717415442833,-327.12129972,0.000315,13]
[328457806,1717415442890,-16157.84699925,0.000315,13]
[328457807,1717415443120,-2779.44155118,0.000315,13]
[328457808,1717415443134,-204871.5584492,0.000315,5]
[328457809,1717415443146,-2527.95413363,0.000315,5]
[328457810,1717415443160,-529.29954606,0.000315,5]
[328457811,1717415443171,-179212.78025591,0.000315,5]
[328457812,1717415443182,-11635.61515134,0.000315,5]
[328457813,1717415443193,-98219.71447576,0.000315,5]
[328457829,1717415445780,-339.21,0.00028811,2]
[328457831,1717415445790,-339.21,0.00031075,2]
[328457833,1717415445799,-355.30026526,0.00031496,4]
[328457835,1717415445811,-185.39973474,0.00031496,4]
[328457837,1717415445821,-150.01,0.00031497,2]
[328457840,1717415445830,-325.75516526,0.00031497,2]
[328457842,1717415445842,-2471.64895703,0.00031497,2]
[328457844,1717415445851,-271633.160016,0.000315,5]
[328457850,1717415445899,-45801.40074428,0.000315,5]
[328457854,1717415445956,-405923.94257404,0.000315,5]
[328457855,1717415446019,-2418.75,0.000315,5]
[328457863,1717415446760,-10737.021767,0.000315,5]
[328457864,1717415446773,-255.95603174,0.000315,5]
[328457865,1717415446790,-869.17,0.000315,5]
[328457866,1717415599275,155.0,0.00017259,2]
[328457867,1717415620899,957.2286088,0.00016396,2]
[328457868,1717415624995,20252.86596094,0.00017259,2]
[328457870,1717415634934,155.0,0.00017259,2]
[328457871,1717415636895,957.2286088,0.00016396,2]
[328457872,1717415637010,10139.82770699,0.00017259,2]
[328457873,1717415639619,253.04392149,0.00017259,2]
[328457874,1717415642489,150.0,0.00019725,2]
[328457875,1717415642683,150.0,0.00019725,2]
[328457876,1717415648926,160.0,0.00017259,2]
[328457877,1717415660900,241.65726449,0.00016396,2]
[328457879,1717416349978,2156.48,0.00031,30]
[328457884,1717416577606,1000.0,0.00031,30]
[328457888,1717416631962,-2557.11576627,0.00023625,2]
[328457889,1717416631972,-6941.6009,0.00024284,2]
[328457890,1717416631983,-151.93,0.00024384,2]
[328457891,1717416631992,-157.75,0.00024384,2]
[328457892,1717416632002,-1250.0,0.00025,2]
[328457893,1717416632011,-383.5,0.00027516,2]
[328457894,1717416632020,-1929.36,0.00027721,2]
[328457895,1717416632030,-5000.0,0.00027721,2]
[328457896,1717416632039,-499.99,0.00027721,2]
[328457897,1717416632048,-177.03,0.00027721,2]
[328457898,1717416632057,-158.07747864,0.00028521,2]
[328457899,1717416632067,-154.41643192,0.00028608,2]
[328457900,1717416632076,-154.41643192,0.0002892,2]
[328457901,1717416632085,-161.72507466,0.00028923,2]
[328457902,1717416632094,-250.0,0.00029317,2]
[328457903,1717416632103,-250.0,0.00029317,2]
[328457904,1717416632113,-1424.67156861,0.00029325,2]
[328457905,1717416632122,-248.33,0.00029325,2]
[328457906,1717416632131,-5343.3,0.00029326,2]
[328457907,1717416632140,-150.0,0.00029328,2]
[328457908,1717416632149,-401.0821182,0.00029334,2]
[328457909,1717416632158,-1696.56646878,0.00029334,2]
[328457910,1717416632170,-872.67905712,0.00029334,2]
[328457911,1717416632181,-338.9781457,0.00029334,2]
[328457912,1717416632192,-792.59458775,0.00029334,2]
[328457913,1717416632201,-3874.34985255,0.00029335,2]
[328457914,1717416632212,-5582.40479843,0.00029335,2]
[328457915,1717416632223,-958.2,0.00029335,2]
[328457926,1717416638039,-9781.30534902,0.00029335,2]
[328457927,1717416638049,-184.93893684,0.0002935,2]
[328457928,1717416638058,-237.93,0.00029362,2]
[328457929,1717416638068,-155.91051025,0.00029368,4]
[328457930,1717416638078,-1099.54,0.00029383,2]
[328457931,1717416638087,-7852.35251623,0.00029492,2]
[328457932,1717416638097,-161.67920678,0.00029494,2]
[328457933,1717416638107,-157.74577382,0.00029528,2]
[328457934,1717416638117,-209.95,0.00029532,2]
[328457935,1717416638126,-12384.12879956,0.00029563,2]
[328457936,1717416638135,-355.59319446,0.00029668,2]
[328457937,1717416638145,-383.5,0.0002978,2]
[328457938,1717416638342,-154.41643192,0.00029824,2]
[328457939,1717416638352,-1000.0,0.00029914,2]
[328457940,1717416638366,-1869.65827179,0.00029923,2]
[328457941,1717416638376,-284.74,0.00029963,2]
[328457942,1717416638386,-783.00658811,0.00029967,2]
[328457944,1717416638396,-155.0,0.00029967,2]
[328457946,1717416638407,-155.9550727,0.00029968,2]
[328457948,1717416638416,-5000.0,0.0003,4]
[328457949,1717416638425,-2181.29187519,0.0003,10]
[328457950,1717416638435,-2349.79329018,0.0003,4]
[328457951,1717416638445,-5703.59628396,0.0003,2]
[328457953,1717416638454,-22182.11366602,0.0003,2]
[328457954,1717416638463,-152.63995083,0.00030093,7]
[328457955,1717416638473,-212.0,0.0003023,2]
[328457956,1717416638483,-154.41643192,0.00030535,7]
[328457957,1717416638492,-301.43,0.00030548,2]
[328457958,1717416638506,-150.0,0.00030548,2]
[328457959,1717416638516,-150.0,0.00030548,2]
[328457960,1717416638526,-212.0,0.000307,2]
[328457961,1717416638535,-6000.0,0.00031,7]
[328457962,1717416638546,-909.50372096,0.00031,4]
[328457963,1717416638558,-157.75,0.00031007,2]
[328457964,1717416638567,-154.41643192,0.00031079,7]
[328457965,1717416638579,-1000.0,0.000311,2]
[328457966,1717416638589,-212.0,0.0003117,2]
[328457967,1717416638598,-2597.93376,0.0003118,2]
[328457968,1717416638608,-161.66416288,0.00031184,3]
[328457969,1717416638617,-423.80389195,0.000312,15]
[328457970,1717416638626,-150.0,0.00031227,2]
[328457971,1717416638636,-150.0,0.00031227,2]
[328457972,1717416638645,-150.0,0.00031231,2]
[328457973,1717416638654,-150.0,0.00031236,2]
[328457974,1717416638664,-150.0,0.00031238,2]
[328457975,1717416638673,-150.0,0.00031242,2]
[328457976,1717416638683,-500.0,0.00031243,2]
[328457977,1717416638693,-200.0,0.00031243,2]
[328457978,1717416638702,-150.0,0.00031243,2]
[328457979,1717416638712,-150.0,0.00031251,2]
[328457980,1717416638721,-150.0,0.00031251,2]
[328457981,1717416638730,-150.0,0.00031252,2]
[328457982,1717416638740,-150.0,0.00031257,2]
[328457983,1717416638750,-150.0,0.00031259,2]
[328457984,1717416638760,-150.0,0.00031266,2]
[328457985,1717416638770,-150.0,0.00031268,2]
[328457986,1717416638779,-150.0,0.00031269,2]
[328457987,1717416638789,-150.0,0.00031275,2]
[328457988,1717416638800,-150.0,0.00031276,2]
[328457989,1717416638810,-150.0,0.00031277,2]
[328457990,1717416638820,-150.0,0.0003128,2]
[328457991,1717416638830,-150.0,0.00031283,2]
[328457992,1717416638839,-150.0,0.00031285,2]
[328457993,1717416638849,-150.0,0.00031288,2]
[328457994,1717416638859,-150.0,0.00031288,2]
[328457995,1717416638869,-150.0,0.0003129,2]
[328457996,1717416638878,-150.0,0.0003129,2]
[328457997,1717416638887,-150.0,0.00031292,2]
[328457998,1717416638896,-150.0,0.00031298,2]
[328457999,1717416638906,-5916.969507,0.000313,2]
[328458000,1717416638916,-1027.4565,0.000313,2]
[328458001,1717416638926,-62383.5861,0.000313,2]
[328458002,1717416638935,-229.01823029,0.000313,2]
[328458003,1717416638945,-447.92153124,0.000313,2]
[328458004,1717416638954,-7500.0,0.000313,2]
[328458005,1717416638963,-323.24657174,0.000313,2]
[328458006,1717416638973,-150.0,0.00031301,2]
[328458007,1717416638982,-150.0,0.00031314,2]
[328458008,1717416638992,-150.0,0.00031317,2]
[328458009,1717416639001,-150.0,0.00031323,2]
[328458010,1717416639010,-150.0,0.00031324,2]
[328458011,1717416639019,-150.0,0.00031325,2]
[328458012,1717416639029,-229.01823026,0.00031325,2]
[328458013,1717416639038,-150.0,0.00031326,2]
[328458014,1717416639048,-381.76420571,0.00031327,2]
[328458015,1717416639058,-150.0,0.00031328,2]
[328458016,1717416639067,-150.0,0.00031331,2]
[328458017,1717416639077,-150.0,0.00031331,2]
[328458018,1717416639087,-150.0,0.00031332,2]
[328458019,1717416639097,-150.0,0.00031333,2]
[328458020,1717416639107,-150.0,0.00031339,2]
[328458021,1717416639117,-150.0,0.00031344,2]
[328458022,1717416639127,-150.0,0.00031345,2]
[328458023,1717416639137,-154.41643192,0.00031346,7]
[328458024,1717416639147,-150.0,0.00031347,2]
[328458025,1717416639157,-150.0,0.00031348,2]
[328458026,1717416639167,-150.0,0.00031348,2]
[328458027,1717416639176,-150.0,0.0003135,2]
[328458028,1717416639186,-150.0,0.0003135,2]
[328458029,1717416639196,-150.0,0.0003135,2]
[328458030,1717416639205,-150.0,0.0003135,2]
[328458031,1717416639216,-229.01823026,0.0003135,2]
[328458032,1717416639225,-150.0,0.00031352,2]
[328458033,1717416639236,-150.0,0.00031352,2]
[328458034,1717416639245,-150.0,0.00031352,2]
[328458035,1717416639255,-150.0,0.00031353,2]
[328458036,1717416639264,-150.0,0.00031354,2]
[328458037,1717416639273,-150.0,0.00031355,2]
[328458038,1717416639283,-150.0,0.00031359,2]
[328458039,1717416639293,-150.0,0.0003136,2]
[328458040,1717416639303,-150.0,0.00031362,2]
[328458041,1717416639314,-150.0,0.00031365,2]
[328458042,1717416639324,-150.0,0.00031365,2]
[328458043,1717416639334,-150.0,0.00031369,2]
[328458044,1717416639344,-150.0,0.00031372,2]
[328458045,1717416639354,-150.0,0.00031372,2]
[328458046,1717416639363,-304.15915553,0.00031372,2]
[328458047,1717416639374,-300.38132523,0.00031374,2]
[328458048,1717416639384,-150.0,0.00031374,2]
[328458049,1717416639394,-229.01823026,0.00031375,2]
[328458050,1717416639405,-150.0,0.00031376,2]
[328458051,1717416639415,-150.0,0.00031378,2]
[328458052,1717416639424,-150.0,0.00031379,2]
[328458053,1717416639433,-150.0,0.00031381,2]
[328458054,1717416639442,-150.0,0.00031381,2]
[328458055,1717416639452,-150.0,0.00031382,2]
[328458056,1717416639461,-150.0,0.0003139,2]
[328458057,1717416639470,-150.0,0.00031397,2]
[328458058,1717416639481,-234.40611588,0.00031398,4]
[328458059,1717416639491,-150.0,0.00031398,2]
[328458060,1717416639505,-767.59,0.00031398,4]
[328458061,1717416639515,-526.66,0.00031398,4]
[328458062,1717416639526,-500.0,0.00031398,4]
[328458063,1717416639536,-769.79,0.00031398,4]
[328458064,1717416639548,-367.34,0.00031398,4]
[328458065,1717416639559,-2858.23,0.00031398,4]
[328458066,1717416639569,-500.0,0.00031398,4]
[328458067,1717416639581,-500.0,0.00031398,4]
[328458068,1717416639592,-500.0,0.00031398,4]
[328458069,1717416639602,-500.0,0.00031398,4]
[328458070,1717416639611,-500.0,0.00031398,4]
[328458071,1717416639621,-631.37,0.00031398,4]
[328458072,1717416639631,-516.97,0.00031398,4]
[328458073,1717416639641,-500.0,0.00031398,4]
[328458074,1717416639649,-528.82,0.00031398,4]
[328458075,1717416639659,-500.0,0.00031398,4]
[328458076,1717416639669,-783.49,0.00031398,4]
[328458077,1717416639678,-500.0,0.00031398,4]
[328458078,1717416639688,-526.41,0.00031398,4]
[328458079,1717416639698,-500.0,0.00031398,4]
[328458080,1717416639707,-500.0,0.00031398,4]
[328458081,1717416639717,-500.0,0.00031398,4]
[328458082,1717416639727,-500.0,0.00031398,4]
[328458083,1717416639739,-500.0,0.00031398,4]
[328458084,1717416639749,-2433.57,0.00031398,4]
[328458085,1717416639759,-10624.38,0.00031398,4]
[328458086,1717416639771,-825.24,0.00031398,4]
[328458087,1717416639781,-500.0,0.00031398,4]
[328458088,1717416639791,-500.0,0.00031398,4]
[328458089,1717416639801,-500.0,0.00031398,4]
[328458090,1717416639811,-500.0,0.00031398,4]
[328458091,1717416639821,-500.0,0.00031398,4]
[328458092,1717416639832,-500.0,0.00031398,4]
[328458093,1717416639842,-500.0,0.00031398,4]
[328458094,1717416639852,-500.0,0.00031398,4]
[328458095,1717416639862,-550.98,0.00031398,4]
[328458096,1717416639872,-609.69,0.00031398,4]
[328458097,1717416639882,-500.0,0.00031398,4]
[328458098,1717416639892,-155.0,0.00031399,4]
[328458099,1717416639902,-207.58824107,0.00031399,4]
[328458100,1717416639911,-500.0,0.00031399,4]
[328458101,1717416639921,-500.0,0.00031399,4]
[328458102,1717416639930,-500.0,0.00031399,4]
[328458103,1717416639940,-500.0,0.00031399,4]
[328458104,1717416639950,-157.57606555,0.00031399,4]
[328458105,1717416639959,-500.0,0.00031399,4]
[328458106,1717416639970,-500.0,0.00031399,4]
[328458107,1717416639980,-500.0,0.00031399,4]
[328458108,1717416639989,-507.13934541,0.00031399,4]
[328458109,1717416639999,-206.68686527,0.00031399,4]
[328458110,1717416640008,-500.0,0.00031399,4]
[328458111,1717416640018,-512.72948556,0.00031399,4]
[328458112,1717416640027,-527.48683168,0.00031399,4]
[328458113,1717416640036,-513.06876144,0.00031399,4]
[328458114,1717416640046,-520.93509281,0.00031399,4]
[328458115,1717416640056,-500.0,0.00031399,4]
[328458116,1717416640065,-500.0,0.00031399,4]
[328458117,1717416640075,-500.0,0.00031399,4]
[328458118,1717416640084,-513.98559746,0.00031399,4]
[328458119,1717416640094,-500.0,0.00031399,4]
[328458120,1717416640104,-589.1,0.00031399,4]
[328458121,1717416640113,-517.61414377,0.00031399,4]
[328458122,1717416640122,-500.0,0.00031399,4]
[328458123,1717416640132,-763.85,0.00031399,4]
[328458124,1717416640142,-500.0,0.00031399,4]
[328458125,1717416640151,-500.0,0.00031399,4]
[328458126,1717416640160,-500.0,0.00031399,4]
[328458127,1717416640169,-700.17,0.00031399,4]
[328458128,1717416640178,-500.0,0.00031399,4]
[328458129,1717416640188,-500.0,0.00031399,4]
[328458130,1717416640197,-524.71624324,0.00031399,4]
[328458131,1717416640207,-500.0,0.00031399,4]
[328458132,1717416640216,-500.0,0.00031399,4]
[328458133,1717416640226,-513.64947006,0.00031399,4]
[328458134,1717416640236,-500.0,0.00031399,4]
[328458135,1717416640245,-608.4,0.00031399,4]
[328458136,1717416640255,-500.0,0.00031399,4]
[328458137,1717416640264,-500.0,0.00031399,4]
[328458138,1717416640273,-500.0,0.00031399,4]
[328458139,1717416640282,-500.0,0.00031399,4]
[328458140,1717416640292,-753.19,0.00031399,4]
[328458141,1717416640301,-500.0,0.00031399,4]
[328458142,1717416640310,-500.0,0.00031399,4]
[328458143,1717416640320,-514.82338152,0.00031399,4]
[328458144,1717416640330,-500.0,0.00031399,4]
[328458145,1717416640339,-515.62779695,0.00031399,4]
[328458146,1717416640348,-500.0,0.00031399,4]
[328458147,1717416640357,-500.0,0.00031399,4]
[328458148,1717416640367,-500.0,0.00031399,4]
[328458149,1717416640376,-349.49677744,0.00031399,4]
[328458150,1717416640385,-500.0,0.00031399,4]
[328458151,1717416640395,-513.53174784,0.00031399,4]
[328458152,1717416640404,-500.0,0.00031399,4]
[328458153,1717416640413,-500.0,0.00031399,4]
[328458154,1717416640423,-513.32019041,0.00031399,4]
[328458155,1717416640432,-500.0,0.00031399,4]
[328458157,1717416640442,-500.0,0.00031399,4]
[328458159,1717416640451,-514.85146359,0.00031399,4]
[328458161,1717416640461,-500.0,0.00031399,4]
[328458162,1717416640471,-509.45676241,0.00031399,4]
[328458164,1717416640480,-500.0,0.00031399,4]
[328458166,1717416640491,-500.0,0.00031399,4]
[328458169,1717416640502,-500.0,0.00031399,4]
[328458172,1717416640514,-500.0,0.00031399,4]
[328458174,1717416640524,-500.0,0.00031399,4]
[328458177,1717416640533,-500.0,0.00031399,4]
[328458180,1717416640543,-500.0,0.00031399,4]
[328458183,1717416640552,-500.0,0.00031399,4]
[328458186,1717416640562,-500.0,0.00031399,4]
[328458188,1717416640573,-1806.26,0.00031399,4]
[328458192,1717416640589,-500.0,0.00031399,4]
[328458195,1717416640602,-500.0,0.00031399,4]
[328458198,1717416640613,-500.0,0.00031399,4]
[328458201,1717416640622,-589.51,0.00031399,4]
[328458204,1717416640631,-977.33,0.00031399,4]
[328458206,1717416640641,-500.0,0.00031399,4]
[328458208,1717416640650,-894.53,0.00031399,4]
[328458210,1717416640659,-500.0,0.00031399,4]
[328458212,1717416640670,-500.0,0.00031399,4]
[328458214,1717416640679,-500.0,0.00031399,4]
[328458216,1717416640689,-1558.8,0.00031399,4]
[328458218,1717416640698,-750.25,0.00031399,4]
[328458220,1717416640708,-500.0,0.00031399,4]
[328458222,1717416640718,-500.0,0.00031399,4]
[328458224,1717416640728,-500.0,0.00031399,4]
[328458226,1717416640739,-500.0,0.00031399,4]
[328458228,1717416640748,-500.0,0.00031399,4]
[328458230,1717416640758,-500.0,0.00031399,4]
[328458232,1717416640768,-518.33069907,0.00031399,4]
[328458234,1717416640777,-500.0,0.00031399,4]
[328458236,1717416640787,-577.95,0.00031399,4]
[328458238,1717416640796,-515.27820811,0.00031399,4]
[328458240,1717416640806,-500.0,0.00031399,4]
[328458241,1717416640817,-500.0,0.00031399,4]
[328458243,1717416640826,-500.0,0.00031399,4]
[328458245,1717416640835,-500.0,0.00031399,4]
[328458247,1717416640845,-515.96891431,0.00031399,4]
[328458249,1717416640856,-507.64570682,0.00031399,4]
[328458251,1717416640866,-500.0,0.00031399,4]
[328458253,1717416640876,-365.86050989,0.00031399,4]
[328458255,1717416640885,-536.56133262,0.00031399,4]
[328458257,1717416640895,-500.0,0.00031399,4]
[328458259,1717416640905,-500.0,0.00031399,4]
[328458260,1717416640915,-500.0,0.00031399,4]
[328458261,1717416640925,-500.0,0.00031399,4]
[328458263,1717416640934,-500.0,0.00031399,4]
[328458265,1717416640944,-500.0,0.00031399,4]
[328458266,1717416640954,-565.08,0.00031399,4]
[328458268,1717416640963,-500.0,0.00031399,4]
[328458270,1717416640972,-500.0,0.00031399,4]
[328458272,1717416640983,-500.0,0.00031399,4]
[328458274,1717416640992,-500.0,0.00031399,4]
[328458276,1717416641001,-500.0,0.00031399,4]
[328458278,1717416641011,-500.0,0.00031399,4]
[328458280,1717416641020,-500.0,0.00031399,4]
[328458282,1717416641030,-258.69670491,0.00031399,4]
[328458284,1717416641039,-500.0,0.00031399,4]
[328458285,1717416641048,-500.0,0.00031399,4]
[328458287,1717416641058,-380.62747238,0.00031399,4]
[328458289,1717416641067,-500.0,0.00031399,4]
[328458291,1717416641076,-500.0,0.00031399,4]
[328458293,1717416641085,-2454.7116,0.000314,2]
[328458295,1717416641095,-150418.1338,0.000314,2]
[328458297,1717416641104,-100000.0,0.000314,2]
[328458299,1717416641113,-379.4439,0.000314,2]
[328458301,1717416641123,-150.0,0.000314,2]
[328458303,1717416641132,-229.01823026,0.000314,2]
[328458305,1717416641141,-162.74866207,0.000314,2]
[328458306,1717416641150,-150.0,0.000314,7]
[328458308,1717416641160,-250.41989735,0.000314,2]
[328458310,1717416641170,-6660.46831582,0.000314,2]
[328458312,1717416641179,-308.49703056,0.000314,2]
[328458314,1717416641188,-150.0,0.00031401,2]
[328458316,1717416641197,-150.0,0.00031402,2]
[328458318,1717416641207,-150.0,0.00031405,2]
[328458319,1717416641216,-150.0,0.00031406,2]
[328458320,1717416641226,-150.0,0.00031407,2]
[328458322,1717416641235,-150.0,0.00031413,2]
[328458323,1717416641245,-150.0,0.00031413,2]
[328458325,1717416641254,-150.0,0.00031413,2]
[328458327,1717416641264,-150.0,0.00031418,2]
[328458328,1717416641273,-150.0,0.00031418,2]
[328458330,1717416641283,-150.0,0.00031421,2]
[328458331,1717416641292,-150.0,0.00031421,2]
[328458333,1717416641302,-150.0,0.00031421,2]
[328458335,1717416641311,-150.0,0.00031422,2]
[328458336,1717416641320,-150.0,0.00031422,2]
[328458338,1717416641330,-423.80389191,0.00031422,15]
[328458339,1717416641339,-150.0,0.00031424,2]
[328458340,1717416641348,-150.0,0.00031427,2]
[328458341,1717416641357,-150.0,0.0003143,2]
[328458342,1717416641367,-150.0,0.00031431,2]
[328458343,1717416641376,-150.0,0.0003144,2]
[328458344,1717416641386,-150.0,0.00031442,2]
[328458345,1717416641395,-150.0,0.00031443,2]
[328458346,1717416641404,-150.0,0.00031445,2]
[328458347,1717416641414,-150.0,0.00031446,2]
[328458348,1717416641423,-150.0,0.00031447,2]
[328458349,1717416641433,-150.0,0.00031448,2]
[328458350,1717416641442,-150.0,0.00031452,2]
[328458351,1717416641451,-150.0,0.00031452,2]
[328458352,1717416641461,-150.0,0.00031453,2]
[328458353,1717416641471,-150.0,0.00031453,2]
[328458354,1717416641481,-150.0,0.00031455,2]
[328458355,1717416641491,-150.0,0.00031456,2]
[328458356,1717416641503,-150.0,0.00031456,2]
[328458357,1717416641513,-150.0,0.00031457,2]
[328458358,1717416641523,-150.0,0.00031458,2]
[328458359,1717416641532,-150.0,0.00031463,2]
[328458360,1717416641543,-150.0,0.00031463,2]
[328458361,1717416641554,-150.0,0.00031465,2]
[328458362,1717416641564,-173.0,0.0003147,15]
[328458363,1717416641573,-150.0,0.0003147,2]
[328458364,1717416641583,-300.0,0.00031471,2]
[328458365,1717416641593,-150.0,0.00031478,2]
[328458366,1717416641602,-150.0,0.00031479,2]
[328458367,1717416641611,-150.0,0.00031479,7]
[328458368,1717416641620,-150.0,0.00031479,7]
[328458369,1717416641629,-150.0,0.00031479,7]
[328458370,1717416641638,-206.92328539,0.00031479,7]
[328458371,1717416641647,-254.92558157,0.00031479,7]
[328458372,1717416641657,-150.0,0.00031479,7]
[328458373,1717416641666,-215.23470063,0.00031479,7]
[328458374,1717416641675,-150.0,0.00031479,7]
[328458375,1717416641684,-173.0,0.0003148,15]
[328458376,1717416641694,-150.0,0.0003148,2]
[328458377,1717416641704,-150.0,0.00031482,2]
[328458378,1717416641713,-195.66906048,0.00031486,2]
[328458379,1717416641722,-3825.10112467,0.00031487,7]
[328458380,1717416641731,-1500.0,0.00031487,2]
[328458381,1717416641741,-173.0,0.0003149,15]
[328458382,1717416641750,-150.0,0.0003149,2]
[328458383,1717416641760,-151.6,0.0003149,2]
[328458385,1717416641769,-151.6,0.0003149,2]
[328458402,1717416641932,-151.6,0.0003149,2]
[328458404,1717416641942,-151.6,0.0003149,2]
[328458405,1717416641951,-151.6,0.0003149,2]
[328458407,1717416641961,-151.6,0.0003149,2]
[328458409,1717416641970,-150.0,0.00031494,2]
[328458411,1717416641979,-150.0,0.00031495,2]
[328458413,1717416641988,-512.06095214,0.00031495,4]
[328458415,1717416641997,-500.0,0.00031496,4]
[328458417,1717416642006,-500.0,0.00031496,4]
[328458419,1717416642015,-500.0,0.00031496,4]
[328458421,1717416642024,-500.0,0.00031496,4]
[328458422,1717416642033,-500.0,0.00031496,4]
[328458424,1717416642042,-552.55191018,0.00031496,4]
[328458426,1717416642051,-510.90101307,0.00031496,4]
[328458428,1717416642060,-500.0,0.00031496,4]
[328458430,1717416642069,-500.0,0.00031496,4]
[328458432,1717416642078,-500.0,0.00031496,4]
[328458434,1717416642087,-530.20159412,0.00031496,4]
[328458436,1717416642096,-510.66281553,0.00031496,4]
[328458437,1717416642105,-500.0,0.00031496,4]
[328458439,1717416642114,-514.18049709,0.00031496,4]
[328458441,1717416642123,-500.0,0.00031496,4]
[328458443,1717416642132,-513.17070184,0.00031496,4]
[328458445,1717416642142,-279.90326375,0.00031496,4]
[328458447,1717416642151,-500.0,0.00031496,4]
[328458449,1717416642160,-510.50921693,0.00031496,4]
[328458451,1717416642169,-500.0,0.00031496,4]